fUSD/lending_fUSD_20251226
["ID","MTS","AMOUNT","RATE_DAILY","PERIOD"]
[399856646,1766755839151,-150.0,0.00015514,2]
[399856647,1766755839162,-150.0,0.0001553,2]
[399856648,1766755839172,-150.0,0.00015571,2]
[399856649,1766755839182,-150.0,0.00015571,2]
[399856650,1766755839192,-150.0,0.00015597,2]
[399856651,1766755839203,-166.66,0.00015603,2]
[399856652,1766755839213,-7482.43226692,0.00015617,2]
[399856653,1766755839223,-150.0,0.00015627,2]
[399856654,1766755839232,-151.0,0.00015666,2]
[399856655,1766755839243,-362.77,0.00015671,2]
[399856656,1766755839252,-392.473933,0.00015673,2]
[399856657,1766755839263,-275.74131063,0.00015679,2]
[399856658,1766755839274,-1300.0,0.000157,3]
[399856659,1766755839285,-150.0,0.00015712,2]
[399856660,1766755839295,-150.0,0.00015741,2]
[399856661,1766755839304,-150.0,0.00015751,2]
[399856662,1766755839314,-150.0,0.00015773,2]
[399856663,1766755839324,-250.0,0.00015817,2]
[399856664,1766755839334,-324.33792878,0.00015817,2]
[399856665,1766755839344,-333.68168469,0.00015817,2]
[399856666,1766755839354,-163.03184917,0.00015817,2]
[399856667,1766755839364,-300.0,0.00015817,2]
[399856668,1766755839375,-250.0,0.00015817,2]
[399856669,1766755839385,-300.0,0.00015817,2]
[399856670,1766755839397,-309.46072033,0.00015829,2]
[399856671,1766755839407,-500.0,0.00015829,2]
[399856672,1766755839417,-150.0,0.00015854,2]
[399856673,1766755839427,-150.0,0.00015854,2]
[399856674,1766755839437,-150.0,0.00015854,2]
[399856675,1766755839447,-8413.87054994,0.00015873,2]
[399856676,1766755839456,-7482.43226692,0.00015873,2]
[399856677,1766755839466,-150.0,0.00015905,2]
[399856678,1766755839476,-172.9884428,0.00015916,2]
[399856679,1766755839487,-150.0,0.00015925,2]
[399856680,1766755839497,-362.77,0.00015945,2]
[399856681,1766755839507,-315.28,0.00015947,2]
[399856682,1766755839516,-150.0,0.00015967,2]
[399856683,1766755839527,-197.56929563,0.0001599,2]
[399856684,1766755839537,-166.7,0.00015992,2]
[399856685,1766755839547,-785550.42106101,0.00016,4]
[399856686,1766755839562,-1651.53998877,0.00016,4]
[399856706,1766755840490,-2199.92859773,0.00016,4]
[399856707,1766755840502,-567.06063767,0.00016,4]
[399856751,1766755845048,-247.74427979,0.0001459,2]
[399856753,1766755845059,-7.43047518,0.00015689,2]
[399856771,1766755846329,-143.56952482,0.00015689,2]
[399856772,1766755846339,-362.08547518,0.00016,4]
[399856773,1766755846512,-3860.09243218,0.00016,4]
[399856774,1766755846572,-522.10496075,0.00016,4]
[399856940,1766756886756,201.15,6.971e-05,2]
[399856954,1766757031344,-166.66,0.00013778,2]
[399856955,1766757031355,-201.15,0.00013942,2]
[399856956,1766757031365,-166.66,0.00014068,2]
[399856957,1766757031375,-1397.665623,0.00014077,2]
[399856958,1766757031387,-6022.894377,0.00014077,2]
[399856959,1766757031397,-1200.0,0.00014182,2]
[399856960,1766757031407,-804.447,0.00014183,2]
[399856961,1766757031417,-300.0,0.00014271,2]
[399856962,1766757031427,-300.0,0.00014271,2]
[399856963,1766757031438,-8413.87054995,0.00014272,2]
[399856964,1766757031448,-216.77624479,0.00014272,2]
[399856965,1766757031458,-250.0,0.00014278,2]
[399856966,1766757031467,-166.66,0.00014359,2]
[399856967,1766757031478,-151.0,0.00014369,2]
[399856968,1766757031488,-287.85767453,0.00014371,2]
[399856969,1766757031498,-327.89415373,0.00014371,2]
[399856970,1766757031515,-65.09576814,0.00014371,2]
[399856971,1766757031525,-865.12229924,0.00014372,2]
[399856972,1766757031537,-3893.83820076,0.00014372,2]
[399856973,1766757031547,-2612.07139922,0.00014372,2]
[399856974,1766757031559,-1156.68531232,0.00014372,2]
[399856975,1766757031571,-280.01601492,0.00014372,2]
[399856976,1766757031583,-510.0,0.00014372,2]
[399856977,1766757031594,-594.49,0.00014372,2]
[399856978,1766757031606,-500.0,0.00014372,2]
[399856979,1766757031618,-111262.14452478,0.00014372,2]
[399856980,1766757031629,-3455.44836013,0.00014372,2]
[399857013,1766757037425,-1463.57776,0.00014372,2]
[399857014,1766757037538,-878165.56662863,0.00014372,2]
[399857015,1766757037548,-2500.0,0.00014372,2]
[399857016,1766757037558,-13435.77675427,0.000144,2]
[399857017,1766757037568,-200.0,0.00014404,2]
[399857018,1766757037578,-500.0,0.00014472,2]
[399857019,1766757037589,-514.2023274,0.00014472,2]
[399857020,1766757037599,-98011.85270763,0.000145,2]
[399857021,1766757037613,-8413.87054994,0.00014564,2]
[399857022,1766757037624,-1000.0,0.00014572,2]
[399857023,1766757037634,-999.0,0.00014602,3]
[399857024,1766757037643,-166.66,0.00014649,2]
[399857025,1766757037653,-500.0,0.00014672,2]
[399857026,1766757037663,-500.0,0.00014672,2]
[399857027,1766757037672,-500.0,0.00014672,2]
[399857028,1766757037682,-500.0,0.00014672,2]
[399857029,1766757037692,-500.0,0.00014672,2]
[399857030,1766757037702,-500.0,0.00014672,2]
[399857031,1766757037712,-500.0,0.00014672,2]
[399857032,1766757037722,-551.85860917,0.00014672,2]
[399857033,1766757037732,-362.77,0.00014672,2]
[399857034,1766757037742,-13435.77675418,0.00014678,2]
[399857035,1766757037751,-500.0,0.00014806,2]
[399857036,1766757037762,-500.0,0.00014806,2]
[399857038,1766757037772,-500.0,0.00014806,2]
[399857040,1766757037782,-500.0,0.00014806,2]
[399857041,1766757037791,-250.0,0.00014806,2]
[399857043,1766757037801,-500.0,0.00014806,2]
[399857045,1766757037811,-500.0,0.00014806,2]
[399857047,1766757037821,-250.0,0.00014806,2]
[399857049,1766757037831,-500.0,0.00014806,2]
[399857051,1766757037841,-500.0,0.00014806,2]
[399857053,1766757037850,-500.0,0.00014806,2]
[399857056,1766757037861,-500.0,0.00014806,2]
[399857058,1766757037872,-500.0,0.00014806,2]
[399857060,1766757037882,-500.0,0.00014806,2]
[399857062,1766757037891,-500.0,0.00014806,2]
[399857064,1766757037901,-500.0,0.00014806,2]
[399857066,1766757037910,-500.0,0.00014806,2]
[399857068,1766757037920,-250.0,0.00014806,2]
[399857070,1766757037929,-500.0,0.00014806,2]
[399857071,1766757037939,-500.0,0.00014806,2]
[399857073,1766757037949,-500.0,0.00014806,2]
[399857075,1766757037958,-500.0,0.00014806,2]
[399857077,1766757037968,-250.0,0.00014806,2]
[399857079,1766757037977,-500.0,0.00014806,2]
[399857081,1766757037987,-500.0,0.00014806,2]
[399857083,1766757037997,-500.0,0.00014806,2]
[399857085,1766757038007,-250.0,0.00014806,2]
[399857087,1766757038016,-500.0,0.00014806,2]
[399857089,1766757038026,-500.0,0.00014806,2]
[399857091,1766757038035,-250.0,0.00014806,2]
[399857092,1766757038045,-500.0,0.00014806,2]
[399857094,1766757038055,-500.0,0.00014806,2]
[399857095,1766757038065,-500.0,0.00014806,2]
[399857096,1766757038075,-250.0,0.00014806,2]
[399857097,1766757038085,-299.79453,0.00014806,2]
[399857098,1766757038095,-250.0,0.00014806,2]
[399857099,1766757038104,-500.0,0.00014806,2]
[399857100,1766757038114,-250.0,0.00014806,2]
[399857101,1766757038124,-500.0,0.00014806,2]
[399857102,1766757038134,-250.0,0.00014806,2]
[399857103,1766757038145,-500.0,0.00014806,2]
[399857104,1766757038155,-250.0,0.00014806,2]
[399857105,1766757038166,-500.0,0.00014806,2]
[399857106,1766757038176,-197.56929563,0.00014846,2]
[399857107,1766757038186,-8413.87054994,0.00014856,2]
[399857108,1766757038196,-1000.0,0.00014879,2]
[399857109,1766757038206,-226.71743608,0.000149,2]
[399857110,1766757038216,-166.66,0.00014939,2]
[399857111,1766757038227,-362.77,0.00014946,2]
[399857112,1766757038238,-13435.77675418,0.00014956,2]
[399857113,1766757038254,-170.22,0.00014969,2]
[399857114,1766757038276,-500.0,0.0001508,2]
[399857115,1766757038289,-8413.87054994,0.00015148,2]
[399857116,1766757038304,-362.77,0.0001522,2]
[399857117,1766757038315,-166.66,0.00015229,2]
[399857118,1766757038326,-13435.77675418,0.00015233,2]
[399857119,1766757038337,-150.0,0.00015288,2]
[399857120,1766757038348,-150.0,0.00015288,2]
[399857121,1766757038358,-150.0,0.00015288,2]
[399857122,1766757038368,-217.88182388,0.00015288,2]
[399857123,1766757038381,-150.0,0.00015288,2]
[399857124,1766757038391,-150.0,0.00015288,2]
[399857125,1766757038401,-150.0,0.00015288,2]
[399857126,1766757038411,-150.0,0.00015288,2]
[399857127,1766757038421,-150.0,0.00015288,2]
[399857128,1766757038432,-150.53428596,0.00015288,2]
[399857129,1766757038442,-150.0,0.00015288,2]
[399857130,1766757038451,-150.0,0.00015288,2]
[399857131,1766757038462,-150.0,0.00015288,2]
[399857132,1766757038471,-150.0,0.00015288,2]
[399857133,1766757038481,-150.0,0.00015288,2]
[399857134,1766757038492,-150.0,0.00015351,2]
[399857135,1766757038501,-510.36426481,0.00015354,2]
[399857136,1766757038511,-150.0,0.00015373,2]
[399857137,1766757038520,-150.0,0.00015409,2]
[399857138,1766757038531,-150.0,0.00015413,2]
[399857139,1766757038541,-150.0,0.00015418,2]
[399857140,1766757038550,-150.0,0.00015429,2]
[399857141,1766757038560,-8413.87054994,0.0001544,2]
[399857142,1766757038570,-150.0,0.00015442,2]
[399857143,1766757038579,-150.0,0.00015458,2]
[399857144,1766757038589,-150.0,0.00015476,2]
[399857145,1766757038600,-10013.14109971,0.0001548,2]
[399857146,1766757038609,-4481.0,0.00015486,2]
[399857147,1766757038619,-362.77,0.00015494,2]
[399857148,1766757038631,-13435.77675418,0.00015511,2]
[399857149,1766757038640,-150.0,0.0001553,2]
[399857150,1766757038650,-150.0,0.00015539,2]
[399857151,1766757038660,-150.0,0.00015542,2]
[399857152,1766757038670,-150.0,0.00015549,2]
[399857153,1766757038680,-150.0,0.00015571,2]
[399857154,1766757038690,-150.0,0.00015575,2]
[399857155,1766757038700,-150.0,0.00015597,2]
[399857156,1766757038710,-1680.0,0.000156,2]
[399857157,1766757038720,-250.0,0.00015601,2]
[399857158,1766757038731,-163.03184917,0.00015601,2]
[399857159,1766757038742,-300.0,0.00015601,2]
[399857160,1766757038754,-324.33792878,0.00015601,2]
[399857161,1766757038765,-333.68168469,0.00015601,2]
[399857162,1766757038776,-150.0,0.00015602,2]
[399857163,1766757038786,-150.0,0.00015627,2]
[399857164,1766757039020,-150.0,0.00015627,2]
[399857165,1766757039031,-420.0,0.0001563,2]
[399857166,1766757039041,-420.0,0.0001563,2]
[399857167,1766757039052,-150.0,0.00015652,2]
[399857168,1766757039062,-150.0,0.00015665,2]
[399857169,1766757039072,-392.473933,0.00015673,2]
[399857170,1766757039082,-275.74131063,0.00015675,2]
[399857171,1766757039092,-150.0,0.0001568,2]
[399857172,1766757039103,-150.0,0.00015712,2]
[399857173,1766757039113,-150.0,0.00015712,2]
[399857174,1766757039123,-150.0,0.00015712,2]
[399857175,1766757039134,-150.0,0.00015712,2]
[399857176,1766757039144,-150.0,0.00015728,2]
[399857177,1766757039155,-8413.87054994,0.00015732,2]
[399857178,1766757039165,-150.0,0.00015751,2]
[399857179,1766757039176,-362.81,0.00015768,2]
[399857180,1766757039186,-150.0,0.00015773,2]
[399857181,1766757039196,-13435.77675418,0.00015789,2]
[399857182,1766757039207,-150.0,0.00015791,2]
[399857183,1766757039218,-150.0,0.00015797,2]
[399857184,1766757039228,-315.28,0.00015804,2]
[399857185,1766757039238,-150.0,0.0001581,2]
[399857186,1766757039253,-500.0,0.00015829,2]
[399857187,1766757039263,-150.0,0.00015854,2]
[399857188,1766757039274,-150.0,0.00015854,2]
[399857189,1766757039284,-150.0,0.00015882,2]
[399857190,1766757039295,-150.0,0.00015894,2]
[399857191,1766757039304,-150.0,0.00015905,2]
[399857192,1766757039315,-150.0,0.00015917,2]
[399857193,1766757039324,-150.0,0.00015941,2]
[399857194,1766757039334,-150.0,0.00015967,2]
[399857195,1766757039344,-150.0,0.00015967,2]
[399857196,1766757039355,-150.0,0.0001598,2]
[399857197,1766757039365,-26158.6806657,0.00015991,2]
[399857198,1766757039375,-2955.7181222,0.00015991,2]
[399857199,1766757039385,-150.0,0.00015995,2]
[399857200,1766757039395,-666.0,0.00015999,2]
[399857201,1766757039405,-500.0,0.00015999,2]
[399857202,1766757039415,-895331.49445475,0.00016,4]
[399857203,1766757039424,-151.0,0.00016,2]
[399857204,1766757039434,-268.406191,0.00016,2]
[399857205,1766757039444,-150.0,0.00016016,2]
[399857206,1766757039453,-8413.87054994,0.00016024,2]
[399857207,1766757039464,-150.0,0.00016043,2]
[399857208,1766757039474,-150.0,0.00016052,2]
[399857209,1766757039483,-150.0,0.0001606,2]
[399857210,1766757039493,-13435.77675418,0.00016067,2]
[399857211,1766757039502,-150.0,0.00016072,2]
[399857212,1766757039513,-150.0,0.00016106,2]
[399857213,1766757039522,-150.0,0.00016137,2]
[399857214,1766757039531,-150.0,0.00016137,2]
[399857215,1766757039541,-150.0,0.00016137,2]
[399857216,1766757039551,-150.0,0.00016137,2]
[399857217,1766757039561,-150.0,0.00016137,2]
[399857218,1766757039571,-150.0,0.00016137,2]
[399857219,1766757039580,-150.0,0.00016168,2]
[399857220,1766757039590,-150.0,0.00016202,2]
[399857221,1766757039600,-150.0,0.00016214,2]
[399857222,1766757039610,-150.0,0.00016222,2]
[399857223,1766757039620,-150.0,0.00016231,2]
[399857224,1766757039629,-166.66,0.00016247,2]
[399857225,1766757039649,-150.0,0.00016258,2]
[399857226,1766757039664,-150.0,0.00016279,2]
[399857227,1766757039675,-150.0,0.00016294,2]
[399857228,1766757039686,-150.0,0.00016307,2]
[399857229,1766757039696,-150.0,0.00016307,2]
[399857230,1766757039707,-8413.87054994,0.00016316,2]
[399857231,1766757039717,-150.0,0.00016333,2]
[399857232,1766757039728,-13435.77675418,0.00016344,2]
[399857233,1766757039739,-150.0,0.00016357,2]
[399857234,1766757039749,-150.0,0.00016369,2]
[399857235,1766757039759,-880.52,0.00016376,2]
[399857236,1766757039769,-150.0,0.0001638,2]
[399857237,1766757039780,-150.0,0.00016392,2]
[399857238,1766757039791,-150.0,0.0001642,2]
[399857239,1766757039801,-150.0,0.0001642,2]
[399857240,1766757039811,-8575.16,0.00016438,2]
[399857241,1766757039822,-150.0,0.00016464,2]
[399857242,1766757039832,-150.0,0.00016477,2]
[399857243,1766757039842,-150.0,0.00016483,2]
[399857244,1766757039852,-150.0,0.00016501,2]
[399857245,1766757039863,-150.0,0.00016523,2]
[399857246,1766757039874,-150.0,0.00016546,2]
[399857247,1766757039884,-150.0,0.00016562,2]
[399857248,1766757039895,-150.0,0.00016562,2]
[399857249,1766757039905,-150.0,0.00016562,2]
[399857250,1766757039915,-150.0,0.00016562,2]
[399857251,1766757039926,-150.0,0.00016594,2]
[399857252,1766757039936,-8413.87054994,0.00016608,2]
[399857253,1766757039947,-150.0,0.00016609,2]
[399857254,1766757039956,-13435.77675418,0.00016622,2]
[399857255,1766757039967,-150.0,0.00016622,2]
[399857256,1766757039978,-150.0,0.00016647,2]
[399857257,1766757039988,-150.0,0.00016647,2]
[399857258,1766757040004,-150.0,0.00016672,2]
[399857259,1766757040015,-150.0,0.00016677,2]
[399857260,1766757040025,-1450.0,0.000167,4]
[399857261,1766757040036,-150.0,0.00016703,2]
[399857262,1766757040046,-150.0,0.00016725,2]
[399857263,1766757040057,-150.0,0.00016732,2]
[399857264,1766757040068,-150.0,0.00016735,2]
[399857265,1766757040078,-1000.0,0.00016739,2]
[399857266,1766757040087,-150.0,0.00016744,2]
[399857267,1766757040097,-150.0,0.00016798,2]
[399857268,1766757040108,-150.0,0.00016816,2]
[399857269,1766757040119,-150.0,0.00016832,2]
[399857270,1766757040130,-150.0,0.00016845,2]
[399857271,1766757040141,-150.0,0.00016856,2]
[399857272,1766757040151,-150.0,0.0001686,2]
[399857273,1766757040161,-150.0,0.00016865,2]
[399857275,1766757040172,-166.66,0.0001689,2]
[399857276,1766757040181,-13435.77675418,0.000169,2]
[399857277,1766757040192,-155.35748306,0.000169,2]
[399857278,1766757040202,-8413.87054994,0.000169,2]
[399857279,1766757040212,-150.0,0.00016901,2]
[399857280,1766757040223,-150.0,0.00016923,2]
[399857281,1766757040233,-511.82107275,0.00016973,2]
[399857282,1766757040245,-163.47849716,0.00016973,2]
[399857283,1766757040257,-158.75,0.00016973,2]
[399857284,1766757040268,-500.0,0.00016973,2]
[399857285,1766757040278,-500.0,0.00016973,2]
[399857286,1766757040290,-150.0,0.00016986,2]
[399857287,1766757040301,-150.0,0.00016986,2]
[399857288,1766757040311,-150.0,0.00016986,2]
[399857289,1766757040322,-150.0,0.00016986,2]
[399857290,1766757040332,-150.00000001,0.00016986,2]
[399857291,1766757040343,-150.0,0.00016986,2]
[399857292,1766757040353,-150.0,0.00016986,2]
[399857293,1766757040367,-150.0,0.00016986,2]
[399857294,1766757040377,-150.00000001,0.00016986,2]
[399857295,1766757040387,-150.0,0.00016986,2]
[399857296,1766757040397,-150.00000001,0.00016986,2]
[399857297,1766757040407,-197.56929563,0.0001699,2]
[399857298,1766757040418,-197.56929563,0.0001699,2]
[399857299,1766757040428,-300.0,0.00016998,2]
[399857300,1766757040438,-279105.94058534,0.00016999,3]
[399857301,1766757040449,-11720.60919845,0.00016999,2]
[399857302,1766757040459,-300.0,0.00016999,2]
[399857303,1766757040469,-151.0,0.00016999,2]
[399857304,1766757040479,-1306251.01704977,0.00017,2]
[399857305,1766757040498,-660.1508,0.00017,2]
[399857306,1766757040510,-89183.00000001,0.00017,2]
[399857307,1766757040523,-1579.01733234,0.00017,2]
[399857308,1766757040535,-2735.85879173,0.00017,2]
[399857309,1766757040561,-437.05308745,0.00017,2]
[399857310,1766757040573,-680.29047002,0.00017,2]
[399857311,1766757040586,-1059.3593,0.00017,2]
[399857312,1766757040598,-1335.45,0.00017,2]
[399857313,1766757040610,-988.79210902,0.00017,2]
[399857314,1766757040623,-1557.38467929,0.00017,2]
[399857315,1766757040635,-14026.50233629,0.00017,2]
[399857318,1766757043183,-159.02185341,0.00014272,2]
[399857319,1766757043193,-1193.0649137,0.00017,2]
[399857320,1766757043231,-1182.47375131,0.00017,2]
[399857329,1766757063589,269.76,0.0003,120]
[399857487,1766757782896,165.96,0.00030137,120]
[399857512,1766758231676,-308.89297663,0.00013431,2]
[399857513,1766758231689,-525.16702337,0.00013431,2]
[399857514,1766758231699,-150.0,0.00013465,2]
[399857515,1766758231710,-1200.0,0.00013465,2]
[399857516,1766758231720,-300.0,0.00013465,2]
[399857517,1766758231730,-300.0,0.00013465,2]
[399857518,1766758231741,-1200.0,0.00013466,2]
[399857519,1766758231753,-500.0,0.00013466,2]
[399857520,1766758231768,-500.0,0.00013466,2]
[399857521,1766758231788,-506.22072322,0.00013466,2]
[399857523,1766758231798,-375.23987349,0.00013466,2]
[399857525,1766758231810,-124.76012651,0.00013466,2]
[399857527,1766758231821,-500.0,0.00013466,2]
[399857529,1766758231830,-500.0,0.00013466,2]
[399857531,1766758231841,-170.7343206,0.00013466,2]
[399857533,1766758231858,-329.2656794,0.00013466,2]
[399857535,1766758231868,-500.0,0.00013466,2]
[399857538,1766758231879,-500.0,0.00013466,2]
[399857540,1766758231888,-500.0,0.00013466,2]
[399857542,1766758231898,-500.0,0.00013466,2]
[399857544,1766758231908,-69535.38,0.00013467,2]
[399857546,1766758231917,-519.01,0.00013699,2]
[399857549,1766758231927,-613.65,0.00013699,2]
[399857551,1766758231937,-500.0,0.00013699,2]
[399857554,1766758231947,-597.70850485,0.00013699,2]
[399857556,1766758231957,-500.0,0.00013699,2]
[399857558,1766758231967,-163.03184917,0.00013803,2]
[399857559,1766758231976,-300.0,0.00013803,2]
[399857561,1766758231986,-151.0,0.00013806,2]
[399857563,1766758231995,-151.0,0.00013806,2]
[399857565,1766758232005,-211.31137877,0.00013807,2]
[399857567,1766758232014,-463.94994667,0.00013808,2]
[399857569,1766758232024,-156.93078452,0.00013808,2]
[399857571,1766758232034,-185104.05287004,0.00013809,2]
[399857574,1766758232046,-1967.48499285,0.00013809,2]
[399857576,1766758232062,-1000.47596498,0.00013809,2]
[399857579,1766758232075,-1299.97134093,0.00013809,2]
[399857830,1766758237778,-810628.0148312,0.00013809,2]
[399857831,1766758237788,-300.0,0.00013908,2]
[399857832,1766758237799,-324.33792878,0.00013908,2]
[399857833,1766758237810,-25500.13,0.00013909,2]
[399857834,1766758237820,-166.67,0.0001401,2]
[399857835,1766758237832,-1104.863,0.00014058,2]
[399857836,1766758237842,-182.549,0.00014058,2]
[399857837,1766758237852,-925.9505,0.00014072,2]
[399857838,1766758237863,-47281.4746,0.00014072,2]
[399857839,1766758237873,-391.52136296,0.00014171,2]
[399857840,1766758237883,-22945.6906831,0.00014172,2]
[399857841,1766758237893,-236.0658,0.00014172,2]
[399857842,1766758237903,-2500.0,0.00014172,2]
[399857843,1766758237914,-2067.76682643,0.00014262,2]
[399857844,1766758237924,-201.8815823,0.00014264,2]
[399857845,1766758237934,-201.23401647,0.00014264,2]
[399857846,1766758237944,-504.00666552,0.00014264,2]
[399857847,1766758237954,-500.0,0.00014271,2]
[399857848,1766758237963,-500.0,0.00014271,2]
[399857849,1766758237979,-500.0,0.00014271,2]
[399857850,1766758237990,-500.0,0.00014271,2]
[399857852,1766758238000,-500.0,0.00014271,2]
[399857853,1766758238011,-500.0,0.00014271,2]
[399857855,1766758238021,-500.0,0.00014271,2]
[399857856,1766758238032,-500.0,0.00014271,2]
[399857857,1766758238042,-500.0,0.00014271,2]
[399857858,1766758238053,-349.26999972,0.00014271,2]
[399857859,1766758238064,-500.0,0.00014271,2]
[399857860,1766758238074,-500.0,0.00014271,2]
[399857861,1766758238084,-500.0,0.00014271,2]
[399857862,1766758238094,-500.0,0.00014271,2]
[399857863,1766758238104,-500.0,0.00014271,2]
[399857864,1766758238115,-500.0,0.00014271,2]
[399857866,1766758238125,-230.70143004,0.00014271,2]
[399857868,1766758238136,-500.0,0.00014271,2]
[399857869,1766758238146,-500.0,0.00014271,2]
[399857870,1766758238156,-500.0,0.00014271,2]
[399857871,1766758238167,-516.24004951,0.00014271,2]
[399857872,1766758238178,-500.0,0.00014271,2]
[399857873,1766758238189,-500.0,0.00014271,2]
[399857874,1766758238200,-500.0,0.00014271,2]
[399857875,1766758238211,-500.0,0.00014271,2]
[399857876,1766758238222,-500.0,0.00014271,2]
[399857877,1766758238232,-500.0,0.00014271,2]
[399857878,1766758238242,-507.63520076,0.00014271,2]
[399857879,1766758238252,-500.0,0.00014271,2]
[399857880,1766758238261,-500.0,0.00014271,2]
[399857881,1766758238273,-500.0,0.00014271,2]
[399857882,1766758238284,-267.49450908,0.00014271,2]
[399857883,1766758238295,-500.0,0.00014271,2]
[399857884,1766758238306,-500.0,0.00014271,2]
[399857885,1766758238316,-551.63642635,0.00014271,2]
[399857886,1766758238327,-500.0,0.00014271,2]
[399857887,1766758238343,-500.0,0.00014271,2]
[399857888,1766758238354,-500.0,0.00014271,2]
[399857889,1766758238365,-500.0,0.00014271,2]
[399857890,1766758238376,-500.0,0.00014271,2]
[399857891,1766758238387,-500.0,0.00014271,2]
[399857892,1766758238398,-500.0,0.00014271,2]
[399857893,1766758238409,-500.0,0.00014271,2]
[399857894,1766758238423,-500.0,0.00014271,2]
[399857895,1766758238435,-500.0,0.00014271,2]
[399857896,1766758238445,-540.5940677,0.00014271,2]
[399857897,1766758238456,-500.0,0.00014271,2]
[399857898,1766758238466,-500.0,0.00014271,2]
[399857899,1766758238477,-500.0,0.00014271,2]
[399857900,1766758238486,-514.2023274,0.00014271,2]
[399857901,1766758238496,-500.0,0.00014271,2]
[399857902,1766758238505,-500.0,0.00014271,2]
[399857903,1766758238515,-500.0,0.00014271,2]
[399857904,1766758238525,-500.0,0.00014271,2]
[399857905,1766758238536,-500.0,0.00014271,2]
[399857906,1766758238547,-500.0,0.00014271,2]
[399857907,1766758238557,-500.0,0.00014271,2]
[399857908,1766758238568,-500.0,0.00014271,2]
[399857909,1766758238578,-33504.5899,0.00014272,2]
[399857910,1766758238588,-8386.7526,0.00014272,2]
[399857911,1766758238599,-1000.0,0.00014272,2]
[399857912,1766758238609,-500.0,0.00014272,2]
[399857913,1766758238619,-156.93078452,0.00014332,2]
[399857914,1766758238630,-500.0,0.00014472,2]
[399857915,1766758238639,-500.0,0.00014472,2]
[399857916,1766758238649,-500.0,0.00014472,2]
[399857917,1766758238658,-500.0,0.00014472,2]
[399857918,1766758238668,-500.0,0.00014472,2]
[399857919,1766758238678,-500.0,0.00014472,2]
[399857920,1766758238689,-386.65632401,0.00014472,2]
[399857921,1766758238702,-500.0,0.00014472,2]
[399857922,1766758238712,-1772.09,0.00014472,2]
[399857923,1766758238723,-22945.69068304,0.00014475,2]
[399857924,1766758238733,-329.99,0.00014501,2]
[399857925,1766758238746,-500.0,0.00014546,2]
[399857926,1766758238756,-255.0,0.00014583,2]
[399857927,1766758238766,-3176.67,0.00014614,2]
[399857928,1766758238776,-431.0,0.00014687,2]
[399857929,1766758238787,-1772.09,0.00014746,2]
[399857930,1766758238797,-420.0,0.0001476,2]
[399857931,1766758238807,-420.0,0.0001476,2]
[399857932,1766758238818,-1680.0,0.00014761,2]
[399857933,1766758238828,-300.0,0.00014774,2]
[399857934,1766758238838,-600.0,0.00014774,2]
[399857935,1766758238848,-600.0,0.00014774,2]
[399857936,1766758238858,-250.0,0.00014774,2]
[399857937,1766758238868,-500.0,0.00014778,2]
[399857938,1766758238879,-500.0,0.00014778,2]
[399857939,1766758238889,-560.80803529,0.00014778,2]
[399857940,1766758238900,-500.0,0.00014778,2]